Cogmind - Beta 15 @@@ ROGUE MODE // 2025.05.07 @ 12:57:09 Player: H3-RMN Result: Destroyed by S-27 Virus with Autogun Performance ------------- Evolutions (4) 2000 Regions Visited (6) 1200 Robots Destroyed (60) 300 Value Destroyed (1509) 1509 Prototype IDs (36) 720 Alien Tech Used (0) 0 Bonus (1226) 1226 TOTAL SCORE: 6955 Bonus ------- Follower Combat Kills 585 Registered with UFD 300 Met Optimus in HQ 500 Friendly Fire -159 Cogmind --------- Core Integrity 0/850 Matter 300/300 Energy 34/100 System Corruption 0% Temperature Cool (0) Movement Core (200) Ox3 Location -6/Extension Parts ------- > --- POWER (1) -------- (None) > --- PROPULSION (5) --- (None) > --- UTILITY (7) ------ Medium Storage Unit Advanced Signal Interpreter Core Analyzer Authchip [Processor] A0-MCA's Component Scanner > --- WEAPON (2) ------- (None) > --- INVENTORY (10) --- Large Storage Unit Advanced Sensor Array Surveybot 24 Chip Transmission Jammer Authchip [Propulsion] Improved Trap Extractor (1/6 Vortex) Personal Teleporter v0.10 (1/15) Heavy Rocket Launcher CPS Tube (2) CPS Tube (2) Peak State ------------ > --- POWER ------------ Meta Core > --- PROPULSION ------- Improved Flight Unit Improved Flight Unit Improved Flight Unit Improved Flight Unit Nuclear Pulse Thruster Nuclear Pulse Thruster > --- UTILITY ---------- Large Storage Unit Advanced Weight Redist. System Advanced Sensor Array Advanced Signal Interpreter Core Analyzer Hacking Suite Improved Hacking Suite A0-MCA's Component Scanner > --- WEAPON ----------- Power Sword Makeshift Spear > --- INVENTORY -------- Nuclear Pulse Thruster Structural Scanner Surveybot 24 Chip Transmission Jammer Improved Utility Shielding Improved Light Armor Plating Authchip [Processor] Improved Trap Extractor Personal Teleporter v0.10 Enhanced Autogun Heavy Rocket Launcher Improved Datajack CPS Tube CPS Tube Makeshift Spear [Rating: 85] Favorites ----------- Power Meta Core Engine Ion Engine Power Core Meta Core Propulsion Improved Flight Unit Treads Light Treads Wheel Subdweller Monowheel Flight Unit Improved Flight Unit Utility Hacking Suite Device Structural Scanner Storage High-capacity Storage Unit Processor Advanced Signal Interpreter Hackware Hacking Suite Protection Light Armor Plating Weapon Autogun Energy Gun Spread Laser Energy Cannon Subdweller Beam Cannon Ballistic Gun Autogun Ballistic Cannon Mini Assault Cannon Launcher Rocket Launcher Special Weapon Mining Laser Slashing Weapon Power Sword Piercing Weapon Makeshift Spear Special Melee Weapon Datajack Build | -11 -10 -10 -8 -8 -6 -6 ------- Run | Yrd Mat Sub Rec Scr Fac Ext Slots Evolved 8 | . . . . . 8 . Power . | . . . . . . . Propulsion 3 | . . . . . 3 . Utility 5 | . . . . . 5 . Weapon . | . . . . . . . Parts Attached 81 | 8 13 14 6 11 23 6 Power 4 | 1 1 2 . . . . Engine 3 | 1 1 1 . . . . Core 1 | . . 1 . . . . Reactor . | . . . . . . . Propulsion 23 | 2 3 4 3 2 7 2 Treads 4 | . 1 2 1 . . . Leg . | . . . . . . . Wheel 9 | 2 1 2 2 . . 2 Hover . | . . . . . . . Flight 10 | . 1 . . 2 7 . Utility 26 | 2 2 1 2 6 9 4 Device 10 | 1 . . . 4 4 1 Storage 4 | 1 1 . . 1 . 1 Processor 3 | . . . . . 3 . Hackware 5 | . . . 1 1 1 2 Protection 4 | . 1 1 1 . 1 . Artifact . | . . . . . . . Weapon 28 | 3 7 7 1 3 7 . Energy Gun 5 | 1 2 2 . . . . Energy Cannon 1 | . . 1 . . . . Ballistic Gun 9 | 2 3 2 1 1 . . Ballistic Cannon 1 | . . . . . 1 . Launcher 4 | . 1 1 . . 2 . Special Weapon 1 | . 1 . . . . . Impact Weapon . | . . . . . . . Slashing Weapon 2 | . . . . . 2 . Piercing Weapon 2 | . . 1 . 1 . . Special Melee Weapon 3 | . . . . 1 2 . Unidentified Prototypes 2 | . 1 . . 1 . . Corrupted Parts 1 | . . . . 1 . . System Corruption 3 | . . . . 3 . . Parts Lost 19 | . . 6 . . 3 10 Power 2 | . . 2 . . . . Propulsion 11 | . . 2 . . 3 6 Utility 3 | . . . . . . 3 Weapon 3 | . . 2 . . . 1 Highest Loss Streak 4 | . . 2 . . 2 4 To Critical Strikes . | . . . . . . . Average Backups 16 | 3 17 19 19 14 13 13 Power . | . 1 . 1 . . . Propulsion 4 | 1 5 6 7 2 . . Utility 6 | . 4 6 6 6 6 7 Weapon 3 | . 6 5 3 2 3 2 Tool/Special . | . . . . . . . Unused Backups 27 | . 5 3 4 9 1 5 Power 2 | . . 1 . 1 . . Propulsion 2 | . 1 . . . . 1 Utility 13 | . 1 1 2 6 1 2 Weapon 5 | . 3 1 1 . . . Tool/Special 5 | . . . 1 2 . 2 Average Slot Usage (%) 91 | . 100 86 86 93 92 85 Engine 2 | . 14 5 . . . . Core 6 | . . 3 10 10 5 5 Treads 8 | . 13 20 10 2 . . Wheel 4 | . 14 4 10 . . 1 Flight 13 | . . . . 23 31 19 Device 5 | . 9 . . 6 10 11 Storage 9 | . 14 12 10 8 5 5 Processor 1 | . . . . . 12 18 Hackware 6 | . . . 6 10 12 8 Protection 5 | . 4 12 9 2 1 1 Energy Gun 3 | . 11 10 1 . . . Energy Cannon 6 | . . 4 10 9 . . Ballistic Gun 12 | . 15 12 18 12 . . Special Melee Weapon 3 | . . . . 7 . . Peak Build Rating 85 | 7 12 28 34 46 85 80 Average Rating 33 | 5 11 17 32 36 75 68 On Entrance 29 | . 7 12 28 34 46 79 Naked Turns . | . . . . . . . Heaviest Build 65 | 11 54 64 65 65 36 33 Greatest Support 41 | 32 32 40 23 24 41 35 Greatest Overweight (x) 5 | . 5 5 3 2 2 3 Average Overweight (x) 1 | . 3 2 2 1 . . Largest Inventory Capacity 20 | 8 20 20 20 20 15 15 Average Capacity 16 | 7 19 20 20 14 15 14 Most Carried 20 | 7 20 20 20 20 15 15 Average Carried 16 | 3 17 19 19 14 13 13 Final Capacity 20 | 8 20 20 20 15 15 10 Final Carried 20 | 7 20 20 20 15 15 10 Class Distribution -------------------- 64% | Mutant 19% | Tank 7% | Hacker-Sprinter 6% | Gunner Dominant Class ---------------- Mutant | -10/Materials Mutant | -10/Subcaves Tank | -8/Recycling Mutant | -8/Scraptown Hacker-Sprinter | -6/Factory Mutant | -6/Extension Resources | -11 -10 -10 -8 -8 -6 -6 ----------- Run | Yrd Mat Sub Rec Scr Fac Ext Matter Collected 2962 | 293 423 365 111 1286 206 278 Remotely . | . . . . . . . Salvage Created 2226 | 85 500 394 208 213 251 575 Parts 137 | 5 37 26 14 11 17 27 Haulers Intercepted 3 | . 2 . . . 1 . Recyclers Shooed 5 | . 4 . 1 . . . Parts Field Recycled . | . . . . . . . Retrieved Matter . | . . . . . . . Parts Self-Destructed 30 | . . 15 . 15 . . Prevented . | . . . . . . . Kills | -11 -10 -10 -8 -8 -6 -6 ------- Run | Yrd Mat Sub Rec Scr Fac Ext Combat Hostiles Destroyed 34 | . 10 11 4 2 5 2 Melee 2 | . . . . . . 2 Guns 17 | . 7 6 2 2 . . Cannons 4 | . . 2 2 . . . AOE 11 | . 3 3 . . 5 . Classes Destroyed 17 | 2 5 4 1 3 1 1 Worker 2 | . . . . . 1 1 Tunneler 3 | 1 1 . . . . 1 Hauler 3 | . 2 . . . 1 . Recycler 7 | 1 3 . . . . 3 Operator 2 | . 1 . . . 1 . Turret 2 | . . 2 . . . . Watcher 6 | . 3 . . . 2 1 Swarmer 12 | . 6 2 . . 4 . Grunt 5 | . 4 . . . 1 . Sentry 4 | . . . 4 . . . Hunter 2 | . . . . . . 2 Artisan 1 | . . 1 . . . . Cobbler 1 | . . 1 . . . . Subdweller 9 | . . 9 . . . . Explorer 1 | . . . . 1 . . Scrapper 1 | . . . . 1 . . Elite 1 | . . . . 1 . . Best Kill Streak 5 | 2 4 4 2 1 5 2 Combat Bots Only 4 | . 3 2 2 1 4 2 Max Kills in Single Turn 3 | 1 3 2 1 1 3 1 Gunslinging . | . . . . . . . Exploded 3 | . 3 1 . . 3 . Melee 1 | . . . . . . 1 Uniques/NPCs Destroyed . | . . . . . . . Combat | -11 -10 -10 -8 -8 -6 -6 -------- Run | Yrd Mat Sub Rec Scr Fac Ext Hostile Shots Fired 262 | . 26 70 10 10 45 101 Missed 83 | . 8 15 1 2 23 34 Hits 179 | . 18 55 9 8 22 67 Projectile 179 | . 18 55 9 8 22 67 Critical Strikes 3 | . . 2 . . . 1 Damage Taken 3053 | . 205 982 131 162 432 1141 Core 1037 | . 12 127 14 25 191 668 Absorbed by Shields 33 | . . . . . 33 . Redirected to Shielding 88 | . . . . . . 88 Ignored by Resistances 6 | . . . 6 . . . Regen/Repaired (Parts) 82 | . . . . . 82 . Core Remaining (%) 64 | 100 . . . 28 . . Volleys Fired 131 | 7 46 44 9 18 7 . Largest 3 | 2 2 3 3 3 1 . Hottest 163 | 60 100 163 133 80 40 . Shots Fired 243 | 14 87 79 24 32 7 . Gun 201 | 14 83 60 18 26 . . Cannon 27 | . . 12 6 6 3 . Launcher 12 | . 1 7 . . 4 . Special 3 | . 3 . . . . . Kinetic 132 | 13 42 30 18 26 3 . Thermal 98 | . 44 42 6 6 . . Explosive 12 | . 1 7 . . 4 . Electromagnetic 1 | 1 . . . . . . Robot Hit Streak 18 | 11 18 16 6 7 . . Robot Miss Streak 8 | 2 8 4 1 6 . . Penetration Max . | . . . . . . . Secondary Targets 1 | . . 1 . . . . Max Gunslinging Chain 1 | . . 1 . . . . Shots Hit Robots 193 | 11 62 59 14 15 14 18 Core Hits 137 | 5 60 35 6 6 18 7 Critical Kills 1 | . . . . 1 . . Critical Parts Destroyed . | . . . . . . . Critical Strikes 3 | . . 1 . 1 1 . Destroy 2 | . . 1 . 1 . . Impale 1 | . . . . . 1 . Melee Attacks 66 | . . 3 . 2 38 23 Impact . | . . . . . . . Slashing 18 | . . . . . 2 16 Piercing 46 | . . 3 . . 36 7 Sneak Attacks 11 | . . . . 2 2 7 Combat Hostiles . | . . . . . . . Follow-up Attacks 4 | . . . . . 1 3 Damage Inflicted 5215 | 84 1016 1556 285 217 1126 931 Guns 2229 | 84 894 839 195 217 . . Cannons 323 | . . 237 86 . . . Explosions 1181 | . 122 480 . . 579 . Melee 1478 | . . . . . 547 931 Ramming 4 | . . . 4 . . . Kinetic 1244 | 84 346 402 195 217 . . Thermal 1308 | . 548 674 86 . . . Explosive 1181 | . 122 480 . . 579 . Electromagnetic . | . . . . . . . Impact . | . . . . . . . Slashing 802 | . . . . . 32 770 Piercing 676 | . . . . . 515 161 Highest Corruption 3 | . . . . 3 . . Average Corruption 3 | . . . . 3 . . Corruption Purged . | . . . . . . . Corruption Blocked . | . . . . . . . Overload Shots . | . . . . . . . Overflow Damage 189 | . . . . . 5 184 Projectiles . | . . . . . . . Explosions 1 | . . . . . 1 . Melee 188 | . . . . . 4 184 Knockbacks . | . . . . . . . Impact . | . . . . . . . Kinetic . | . . . . . . . Secondary . | . . . . . . . Self-Inflicted Damage 51 | . . 17 2 . 32 . Shots 2 | . . 1 . . 1 . Rammed 1 | . . . 1 . . . Targets Rammed 1 | . . . 1 . . . Kicked . | . . . . . . . Crushed . | . . . . . . . Highest Temperature 261 | 20 249 114 261 138 8 . Average Temperature 61 | 15 67 29 91 48 3 . Received Heat Transfer 465 | . 81 120 36 84 108 36 Effects 1 | . . . 1 . . . Interference 1 | . . . 1 . . . Siege Activations . | . . . . . . . Martial Activations . | . . . . . . . Shielding Activations . | . . . . . . . Robots Disrupted . | . . . . . . . Combat Hostiles . | . . . . . . . Robots Corrupted . | . . . . . . . Combat Hostiles . | . . . . . . . Parts Fried . | . . . . . . . Impact Corruptions . | . . . . . . . Robots Melted . | . . . . . . . Combat Hostiles . | . . . . . . . Parts Melted 3 | . . 2 . 1 . . Heat Transferred 1679 | . 680 888 111 . . . Parts Sabotaged . | . . . . . . . Parts Stolen . | . . . . . . . Parts Stripped . | . . . . . . . Power Chain Reactions . | . . . . . . . Alert | -11 -10 -10 -8 -8 -6 -6 ------- Run | Yrd Mat Sub Rec Scr Fac Ext Maximum Alert Level 1 | . . . . . 1 . Low Security (%) 98 | 100 100 . 100 . 94 100 Level 1 1 | . . . . . 5 . Level 2 . | . . . . . . . Level 3 . | . . . . . . . Level 4 . | . . . . . . . Level 5 . | . . . . . . . High Security . | . . . . . . . Max Security . | . . . . . . . Peak Influence 326 | 10 133 . 83 . 326 155 Initial 155 | . . . . . . 155 Average 37 | 1 41 . 19 . 51 52 Influence Increases 1647 | 10 435 95 308 . 687 112 Destroy 0b10 Robot/C 560 | . 200 80 80 . 160 40 Destroy 0b10 Robot/NC 115 | 10 50 . . . 25 30 Destroy Leader 118 | . 50 . . . 56 12 Allied During Kill 13 | . . . . . 13 . Successful Hack 186 | . 46 . 42 . 98 . Select Force Hacks 180 | . . . 180 . . . Disable Machine 75 | . . . . . 75 . Destroy Structure 70 | . 14 . 6 . 50 . Partial Spotted 30 | . 15 . . . 15 . Lose Combat Pursuer 300 | . 60 15 . . 195 30 Influence Decreases 1645 | 10 325 205 308 . 369 428 Entered New Map 217 | . . 54 . . . 163 Time Decay 1218 | 10 325 131 308 . 259 185 Lost Part 110 | . . 20 . . 30 60 Lost Ally 100 | . . . . . 80 20 Squads Dispatched 9 | . 1 . . . 8 . Investigation 5 | . . . . . 5 . Extermination 2 | . . . . . 2 . Reinforcement 2 | . 1 . . . 1 . Assault . | . . . . . . . Garrison . | . . . . . . . Intercept . | . . . . . . . Searches Triggered . | . . . . . . . Construction Impeded . | . . . . . . . Haulers Reinforced 1 | . . . . . 1 . Active Scanning Responses . | . . . . . . . Cargo Convoy Interrupts . | . . . . . . . Stealth | -11 -10 -10 -8 -8 -6 -6 --------- Run | Yrd Mat Sub Rec Scr Fac Ext Distress Signals 4 | . 1 . . . 3 . Communications Jammed 12 | . . . . . 12 . Distress Signals 12 | . . . . . 12 . Times Spotted 93 | . 15 12 4 19 28 15 Peak Tracking Total 12 | . 3 4 2 4 12 9 Tactical Retreats 9 | . 3 1 . . 4 1 Traps | -11 -10 -10 -8 -8 -6 -6 ------- Run | Yrd Mat Sub Rec Scr Fac Ext Traps Triggered 4 | . . 1 . . 3 . Indirectly . | . . . . . . . Trap Hack Attempts . | . . . . . . . Triggered . | . . . . . . . Disarmed . | . . . . . . . Reprogrammed . | . . . . . . . Reused . | . . . . . . . Traps Extracted . | . . . . . . . Installed . | . . . . . . . Triggered . | . . . . . . . Most Traps Carried 1 | . . . . 1 1 1 Machines | -11 -10 -10 -8 -8 -6 -6 ---------- Run | Yrd Mat Sub Rec Scr Fac Ext Machines Disabled 11 | . . 5 . 1 5 . Max in Single Turn 2 | . . 2 . . 2 . Machines Repaired . | . . . . . . . Machines Dismantled . | . . . . . . . Machines Sabotaged . | . . . . . . . Overloaded Fab Kills . | . . . . . . . Hacking | -11 -10 -10 -8 -8 -6 -6 --------- Run | Yrd Mat Sub Rec Scr Fac Ext Machines Accessed 46 | . 8 2 13 4 18 1 Terminals 23 | . 7 . 6 . 9 1 Fabricators 3 | . . . . . 3 . Repair Stations 2 | . . . . . 2 . Recycling Units 9 | . 1 . 7 . 1 . Scanalyzers 3 | . . . . . 3 . Garrison Access . | . . . . . . . Total Hacks 142 | . 26 5 45 9 56 1 Successful 107 | . 18 5 33 9 41 1 Failed 35 | . 8 . 12 . 15 . Catastrophic 3 | . 1 . 1 . 1 . Database Lockouts . | . . . . . . . Manual 62 | . 21 . 23 . 18 . Terminals 74 | . 25 . 24 . 24 1 Fabricators 11 | . . . . . 11 . Repair Stations 6 | . . . . . 6 . Recycling Units 24 | . 1 . 21 . 2 . Scanalyzers 13 | . . . . . 13 . Garrison Access . | . . . . . . . Terminal Hacks 38 | . 9 5 8 9 6 1 Record 6 | . . 4 . 2 . . Part Schematic 7 | . 2 . 3 . 2 . Robot Analysis 10 | . 2 . 2 6 . . Prototype ID Bank 3 | . 2 . 1 . . . Open Door 1 | . . . . . . 1 Branch Access Points 1 | . 1 . . . . . Terminal Index 2 | . 1 . 1 . . . Locate Traps 1 | . . . . . 1 . Hauler Manifests 1 | . 1 . . . . . Registered Components 1 | . . . . . 1 . Registered Prototypes 1 | . . . . . 1 . Zone Layout 2 | . . . 1 . 1 . Proto ID Catalog 2 | . . 1 . 1 . . Fabricator Hacks 5 | . . . . . 5 . Network Status 1 | . . . . . 1 . Load Schematic 2 | . . . . . 2 . Build 2 | . . . . . 2 . Repair Station Hacks 5 | . . . . . 5 . Scan Component 3 | . . . . . 3 . Repair 2 | . . . . . 2 . Recycling Unit Hacks 12 | . 1 . 10 . 1 . Report Inventory 9 | . 1 . 7 . 1 . Retrieve Components 3 | . . . 3 . . . Scanalyzer 12 | . . . . . 12 . Insert Component 6 | . . . . . 6 . Analyze 6 | . . . . . 6 . Garrison Access Hacks . | . . . . . . . Unauthorized Hacks 34 | . 8 . 15 . 11 . Terminals 24 | . 8 . 9 . 7 . Track 3 | . 1 . 1 . 1 . Botnet 5 | . 1 . 2 . 2 . Operators 1 | . 1 . . . . . Skim 15 | . 5 . 6 . 4 . Fabricators 4 | . . . . . 4 . Prioritize 1 | . . . . . 1 . Haulers 1 | . . . . . 1 . Recompile 2 | . . . . . 2 . Repair Stations . | . . . . . . . Recycling Units 6 | . . . 6 . . . Tunnel 6 | . . . 6 . . . Scanalyzers . | . . . . . . . Garrison Access . | . . . . . . . Data Cores Recovered 1 | . . . . . 1 . Used . | . . . . . . . Hacking Detections 33 | . 7 . 10 . 16 . Full Trace Events 5 | . . . 2 . 3 . Feedback Events . | . . . . . . . Feedback Blocked . | . . . . . . . Robot Schematics Acquired . | . . . . . . . Robots Built 3 | . . . . . 3 . Authchips . | . . . . . . . Time 116 | . . . . . 116 . Total Robot Build Rating 9 | . . . . . 9 . Part Schematics Acquired 12 | . 2 . 3 . 7 . Parts Built 2 | . . . . . 2 . Authchips 1 | . . . . . 1 . Time 28 | . . . . . 28 . Total Part Build Rating 8 | . . . . . 8 . Parts Repaired 2 | . . . . . 2 . Time 70 | . . . . . 70 . Parts Recycled . | . . . . . . . Recycled Matter . | . . . . . . . Retrieved Matter . | . . . . . . . Retrieved Components 13 | . . . 13 . . . Parts Scanalyzed 5 | . . . . . 5 . Part Schematics Acquired 5 | . . . . . 5 . Parts Damaged . | . . . . . . . Bothacking | -11 -10 -10 -8 -8 -6 -6 ------------ Run | Yrd Mat Sub Rec Scr Fac Ext Used RIF Installer . | . . . . . . . Robots Hacked 2 | . . . . 2 . . Non-combat . | . . . . . . . Combat 2 | . . . . 2 . . Robot Hacks Applied 2 | . . . . 2 . . parse_system 2 | . . . . 2 . . Relay Couplers Released . | . . . . . . . Fabnet Peak Effective % . | . . . . . . . Robots Rewired . | . . . . . . . Allies Hacked . | . . . . . . . Hacks Repelled . | . . . . . . . Allies | -11 -10 -10 -8 -8 -6 -6 -------- Run | Yrd Mat Sub Rec Scr Fac Ext Total Allies 9 | . . . . 5 3 1 Largest Group 5 | . . . . 5 3 1 Highest-Rated Group 241 | . . . . 241 94 31 Highest-Rated Ally 50 | . . . . 50 47 31 Total Orders . | . . . . . . . Ally Attacks 116 | . . . . 82 31 3 Total Damage 1803 | . . . . 1330 451 22 Kills 20 | . . . . 17 3 . Allies Corrupted . | . . . . . . . Allies Melted 4 | . . . . 4 . . Intel | -11 -10 -10 -8 -8 -6 -6 ------- Run | Yrd Mat Sub Rec Scr Fac Ext Active Infowar (turns) 3752 | 9 884 . . 1852 747 260 Sensors 883 | . . . . . 687 196 IFF 2 | . . . . . 2 . Structural 1875 | . . . . 1852 . 23 Seismic 893 | 9 884 . . . . . Jamming 285 | . . . . . 58 227 Robot Analysis Total 10 | . 2 . 2 6 . . Derelict Logs Recovered 7 | . . 2 . 5 . . Drone Launches . | . . . . . . . Drone Recoveries . | . . . . . . . Exploration | -11 -10 -10 -8 -8 -6 -6 ------------- Run | Yrd Mat Sub Rec Scr Fac Ext Turns Passed 10353 | 92 1298 2195 1148 4369 757 494 Spaces Moved 6451 | 56 702 1060 491 2353 1331 458 Core 78 | 2 . . . . 1 75 Treads 1009 | . . 506 221 282 . . Legs . | . . . . . . . Wheels 1655 | 54 702 554 270 . . 75 Hover . | . . . . . . . Flight 3708 | . . . . 2071 1330 307 Fastest Speed 25 | 50 100 140 140 104 25 26 Average Speed 136 | 98 145 189 221 169 28 56 Slowest Speed 320 | 100 155 240 320 320 150 200 Overloaded Moves . | . . . . . . . Propulsion Burnouts . | . . . . . . . Robots Hopped 13 | . . . . . 13 . Potential Cave-ins . | . . . . . . . Cave-ins Triggered . | . . . . . . . Teleports 1 | . . . . . . 1 Exploration Rate (%) 62 | 3 98 71 90 89 38 48 Regions Visited 6 Branch Regions 4 Pre-discovered Areas 12 | . . 2 9 1 . . Known Exits Taken 4 | . . 1 1 1 1 . Unknown Exits Taken 2 | 1 1 . . . . . Scrap Searched 11 | . . 2 . 9 . . Spaces Dug 28 | . 3 5 . 4 16 . Terrain Destroyed 107 | . 11 45 6 6 39 . Melee 13 | . . . . . 13 . Projectile 19 | . 3 1 6 6 3 . AOE 75 | . 8 44 . . 23 . Terrain Rammed . | . . . . . . . Walls Destroyed . | . . . . . . . Machines Disabled . | . . . . . . . Actions | -11 -10 -10 -8 -8 -6 -6 --------- Run | Yrd Mat Sub Rec Scr Fac Ext Total 7729 | 77 898 1169 539 2728 1649 669 Wait 799 | . 94 21 18 285 225 156 Move 6420 | 55 701 1059 490 2352 1305 458 Hop 12 | . . . . . 12 . Pick Up 96 | 7 24 12 7 31 11 4 Fast Attach 31 | 7 1 3 2 5 9 4 Attach 29 | . 1 6 1 5 10 6 Detach 4 | . . . . . 2 2 Swap 53 | 1 15 12 3 5 9 8 Drop 78 | . 16 9 8 25 8 12 Fire 131 | 7 46 44 9 18 7 . Melee 60 | . . 3 . 2 36 19 Ram 1 | . . . 1 . . . Kick . | . . . . . . . Crush . | . . . . . . . Escape Stasis 15 | . . . . . 15 . Rewire . | . . . . . . . Trap . | . . . . . . . Miscellaneous . | . . . . . . . Route ------- -11/Scrapyard -10/Materials (discovered 6 exits: *Mat x3 / *Min x2 / *Sub) -10/Subcaves (discovered 3 exits: Mat x2 / *Rec) -8/Recycling (discovered 2 exits: *Fac / *Scr) -8/Scraptown (discovered 2 exits: *Fac x2) -6/Factory (discovered 2 exits: Fac / *Ext) -6/Extension (discovered 2 exits: *Fac / [*Cet]) History --------- Turn | Location | Event 2 | -11/Scrapyard | Met Revision 17 14 | -11/Scrapyard | Discovered new exit (range 16) 93 | -11/Scrapyard | Entered Materials 303 | -10/Materials | Discovered new exit (range 16) 307 | -10/Materials | Build established: Mutant 318 | -10/Materials | Identified exit to Mines 469 | -10/Materials | Discovered new exit (range 7) 845 | -10/Materials | Identified exit to Materials 922 | -10/Materials | Learned Storage security intel 988 | -10/Materials | Learned location of 1 exit from Recycling 1093 | -10/Materials | Learned Storage trap positions 1157 | -10/Materials | Learned Storage emergency access door positions 1182 | -10/Materials | Discovered new exit (range 8) 1193 | -10/Materials | Learned 4 Subcaves zone layouts 1296 | -10/Materials | Learned location of 2 exits from Materials 1391 | -10/Materials | Entered Subcaves 1392 | -10/Subcaves | Approached by a straggling Scientist 1392 | -10/Subcaves | Identified exit to Recycling 1433 | -10/Subcaves | Learned location of Zion (-7) 1471 | -10/Subcaves | Learned location of Storage (-8) 2032 | -10/Subcaves | Visited Clippyterm 2039 | -10/Subcaves | Identified exit to Materials 2039 | -10/Subcaves | Learned Research security intel 2687 | -10/Subcaves | Visited 4L-MR0's lab 2715 | -10/Subcaves | Found Meta Core 2716 | -10/Subcaves | Attached Meta Core, gained temporary slots: Propulsion, Utility, Weapon 3419 | -10/Subcaves | Build established: Tank 3488 | -10/Subcaves | Core integrity fell below 50% 3586 | -10/Subcaves | Entered Recycling 3587 | -8/Recycling | Identified exit to Factory 3981 | -8/Recycling | Learned Factory terminal intel 4019 | -8/Recycling | Learned location of 1 exit from Recycling 4049 | -8/Recycling | Learned Storage security intel 4075 | -8/Recycling | Learned Factory recycling unit intel 4076 | -8/Recycling | Learned location of Extension (-6) 4085 | -8/Recycling | Learned location of Lower Caves (-6) 4105 | -8/Recycling | Identified exit to Scraptown 4657 | -8/Recycling | Scanned before Scraplab entrance 4702 | -8/Recycling | Entered Scraplab 4734 | -8/Recycling | Entered Scraptown 4962 | -8/Scraptown | Visited Red Mages 5042 | -8/Scraptown | Scanned Subdweller tech in exchange for log data 5051 | -8/Scraptown | Learned 12 Factory zone layouts 5058 | -8/Scraptown | Learned Research stockpile data 5405 | -8/Scraptown | Build established: Mutant 5866 | -8/Scraptown | Visited Assassins FH 5896 | -8/Scraptown | Visited Bundlers 6108 | -8/Scraptown | Visited Junk Repository 6155 | -8/Scraptown | Visited Comm Corps 6273 | -8/Scraptown | Visited UFD Registry 6273 | -8/Scraptown | Registered with UFD as "Scrapmachine" 6386 | -8/Scraptown | Visited Cyclists 6398 | -8/Scraptown | Entered Cyclist Reading Room 6499 | -8/Scraptown | Visited Observation Area 6531 | -8/Scraptown | Visited Junk Repository 6576 | -8/Scraptown | Visited Science Guys 6807 | -8/Scraptown | Visited Analyses Database 6844 | -8/Scraptown | Visited Scrapoid Pod Storage 6870 | -8/Scraptown | Visited Science Testing Area 6891 | -8/Scraptown | Visited Supply Room 6938 | -8/Scraptown | Visited A0-MCA Data Center 6966 | -8/Scraptown | Visited Curators Association 7010 | -8/Scraptown | Visited DA-N13 Charitable Foundation 7029 | -8/Scraptown | Found DCF Scrap (32 items) 7200 | -8/Scraptown | Discovered exit to Factory (range 5) 7556 | -8/Scraptown | Found Scrapoid Pod 7890 | -8/Scraptown | Scrapoid Pod released 08S05-D (x5) 8001 | -8/Scraptown | Discovered exit to Factory (range 13) 8452 | -8/Scraptown | Met Optimus 8452 | -8/Scraptown | Accepted into 0bPrime 8541 | -8/Scraptown | Given a B- rating by A0-MCA 8545 | -8/Scraptown | Found A0-MCA's Component Scanner 8622 | -8/Scraptown | Build established: Gunner 8852 | -8/Scraptown | Civil war broke out across Scraptown 8893 | -8/Scraptown | Found Surveybot 24 Chip 8983 | -8/Scraptown | Optimus destroyed in the chaos of civil war 8991 | -8/Scraptown | Found Personal Teleporter v0.10 9051 | -8/Scraptown | Lost 13 allies 9102 | -8/Scraptown | Lost 3 allies 9103 | -8/Scraptown | Entered Factory 9103 | -6/Factory | Accompanied by 2 allies 9103 | -6/Factory | Evolved 8 slots: Propulsion x3, Utility x5 9104 | -6/Factory | Identified exit to Extension 9105 | -6/Factory | Identified exit to Factory 9106 | -6/Factory | Loaded intel: 27 terminal locations 9107 | -6/Factory | Loaded intel: 8 recycling unit locations 9309 | -6/Factory | Repaired Imp. Flight Unit 9375 | -6/Factory | Repaired Broken Surge Thruster? 9385 | -6/Factory | Fabricated Transmission Jammer? 9574 | -6/Factory | Fabricated G-47 Trooper (x3) 9632 | -6/Factory | Build established: Hacker-Sprinter 9855 | -6/Factory | Spotted B-75 Beast 9860 | -6/Factory | Entered Extension 9979 | -6/Extension | Lost 4 parts (3n1u) 10210 | -6/Extension | Disrupted transfer network 10301 | -6/Extension | Spotted B-75 Beast 10304 | -6/Extension | Spotted B-75 Beast 10308 | -6/Extension | Core integrity fell below 50% 10339 | -6/Extension | Lost 4 parts (3n1w) 10347 | -6/Extension | Discovered exit to Factory (range 16) 10348 | -6/Extension | Discovered new exit (range 15) 10350 | -6/Extension | Core integrity fell below 20% 10354 | -6/Extension | Destroyed by S-27 Virus with Autogun Last Messages --------------- 10302_ S-27 Virus unfolds itself. 10304_ Imp. Flight Unit destroyed. 10304_ Personal Teleporter v0.10 accelerates matter through subspace pores. 10305_ Nuclear Pulse Thruster destroyed. 10305_ Mak. Spear blasted off. 10308_ Acquired 11 matter. 10308_ Power Sword destroyed. 10310_ Acquired 5 matter. 10317_ Discarded Meta Core. 10317_ Temporary Utility slot lost. 10344_ C-30 ARC bursts open, deploying its payload. 10344_ S-27 Virus unfolds itself. 10347_ EXIT=FOUND: FACTORY 10347_ Imp. Utility Shielding destroyed. 10348_ K-01 Serf exits level. 10348_ Adv. Weight Redist. System destroyed. 10348_ EXIT=FOUND 10348_ K-01 Serf exits level. 10354_ Acquired 14 matter. Map ----- +----------------------------------------------------+ | ??????????????????????????????????????? | | ??????????????????????????????????????? | | ??????????????????????????????????????? | | ??????????????????????????????????????? | | ??????????????????????????????????????? | | ??????????????????????????????????????? | | ??????????????????????????????????????? | | ??????????????????????????????????????? | | ??????????????????????????????????????? | | ??????????????????????????????????????? | | ??????????????????????????????????????? | | ??????????????????????????????????????? | | ??????????????????????????????????????? | | ??????????????????????????????????????? | | ??????????????????????????????????????? | | ??????????????????????????????????????? | | ??????????????????????????????????????? | | ??????????????????????????????????????? | | ??????????????????????????????????????? | | ??????????????????????????????????????? | | ??????????????????????????????????????? | | ??????????????????????????????## ##???? | | ????????????????????????????? "" "" #?? | | ############################ " " ##? | | t # | | ss@ !